Cogmind - Beta 12 X1 @@@ ROGUE MODE // 2022.07.19 @ 09:56:56 Player: btmk16 Result: Destroyed by D-53 Grenadier with Mini Grenade Launcher Performance ------------- Evolutions (0) 0 Regions Visited (4) 800 Robots Destroyed (27) 135 Value Destroyed (380) 380 Prototype IDs (23) 460 Alien Tech Used (0) 0 Bonus (328) 328 TOTAL SCORE: 2103 Bonus ------- Follower Combat Kills 28 Aligned with FarCom 300 Cogmind --------- Core Integrity 0/250 Matter 280/300 Energy 107/250 System Corruption 1% Temperature Cool (0) Movement Treading (240) Ox1 Location -9/Mines Parts ------- > --- POWER (1) -------- Ion Engine > --- PROPULSION (2) --- Light Treads Improved Treads > --- UTILITY (2) ------ High-capacity Storage Unit > --- WEAPON (2) ------- (None) > --- INVENTORY (20) --- Ion Engine Light Treads Improved Treads Wheel Large Storage Unit Large Matter Pod (150) Structural Scanner Light Armor Plating Army-in-a-Box (30/30) Grenade Launcher Rocket Launcher Peak State ------------ > --- POWER ------------ Ion Engine > --- PROPULSION ------- Improved Treads Improved Treads > --- UTILITY ---------- High-capacity Storage Unit Light Armor Plating > --- WEAPON ----------- Assault Rifle Light Assault Rifle > --- INVENTORY -------- Ion Engine Ion Engine Light Treads Light Treads Improved Treads Improved Treads Wheel Large Storage Unit Large Matter Pod Structural Scanner Light Armor Plating Army-in-a-Box Light Assault Rifle Grenade Launcher Grenade Launcher [Rating: 16] Favorites ----------- Power Ion Engine Engine Ion Engine Propulsion Improved Treads Treads Improved Treads Leg Aluminum Leg Utility High-capacity Storage Unit Storage High-capacity Storage Unit Processor Targeting Computer Protection Light Armor Plating Weapon Assault Rifle Ballistic Gun Assault Rifle Launcher Grenade Launcher Build | -11 -10 -10 -10 -9 ------- Run | Scr Mat Min Exi Min Slots Evolved . | . . . . . Power . | . . . . . Propulsion . | . . . . . Utility . | . . . . . Weapon . | . . . . . Parts Attached 14 | . 6 2 . 6 Power 2 | . 1 . . 1 Engine 2 | . 1 . . 1 Core . | . . . . . Reactor . | . . . . . Propulsion 5 | . 3 . . 2 Treads 4 | . 2 . . 2 Leg 1 | . 1 . . . Wheel . | . . . . . Hover . | . . . . . Flight . | . . . . . Utility 4 | . 2 2 . . Device . | . . . . . Storage 2 | . 1 1 . . Processor 1 | . 1 . . . Hackware . | . . . . . Protection 1 | . . 1 . . Artifact . | . . . . . Weapon 3 | . . . . 3 Energy Gun . | . . . . . Energy Cannon . | . . . . . Ballistic Gun 2 | . . . . 2 Ballistic Cannon . | . . . . . Launcher 1 | . . . . 1 Special Weapon . | . . . . . Impact Weapon . | . . . . . Slashing Weapon . | . . . . . Piercing Weapon . | . . . . . Special Melee Weapon . | . . . . . Unidentified Prototypes . | . . . . . Parts Lost 8 | . . 1 . 7 Power 1 | . . . . 1 Propulsion 2 | . . . . 2 Utility 2 | . . 1 . 1 Weapon 3 | . . . . 3 Highest Loss Streak 7 | . . 1 . 7 To Critical Strikes . | . . . . . Average Slot Usage (%) 97 | . 99 93 100 98 Engine 14 | . 14 14 14 14 Treads 22 | . 9 28 28 28 Leg 5 | . 18 . . . Storage 14 | . 14 14 14 14 Processor 5 | . 13 3 . . Protection 6 | . . 5 14 13 Ballistic Gun 27 | . 28 28 28 26 Naked Turns . | . . . . . Heaviest Build 53 | 11 28 51 51 53 Greatest Support 46 | 20 46 46 46 46 Greatest Overweight (x) 1 | . 1 1 1 1 Average Overweight (x) . | . . . 1 1 Largest Inventory Capacity 20 | . 15 20 20 20 Average Capacity 16 | . 12 16 20 20 Most Carried 20 | . 15 18 20 20 Average Carried 15 | . 9 16 18 19 Final Capacity 20 | 8 15 20 20 20 Final Carried 20 | 6 15 18 20 16 Class Distribution -------------------- 100% | Mutant Dominant Class ---------------- Mutant | -10/Materials Mutant | -10/Mines Mutant | -10/Exiles Mutant | -9/Mines Resources | -11 -10 -10 -10 -9 ----------- Run | Scr Mat Min Exi Min Matter Collected 775 | 200 310 159 . 106 Remotely . | . . . . . Salvage Created 619 | . 380 165 . 74 Parts 54 | . 24 17 . 13 Haulers Intercepted 2 | . 2 . . . Recyclers Shooed 2 | . 1 1 . . Parts Field Recycled . | . . . . . Retrieved Matter . | . . . . . Parts Self-Destructed . | . . . . . Prevented . | . . . . . Kills | -11 -10 -10 -10 -9 ------- Run | Scr Mat Min Exi Min Combat Hostiles Destroyed 20 | . 5 7 . 8 Guns 17 | . 5 7 . 5 AOE 3 | . . . . 3 Classes Destroyed 7 | . 5 2 . . Worker 1 | . 1 . . . Builder 2 | . 1 . . 1 Hauler 2 | . 2 . . . Recycler 1 | . . 1 . . Watcher 1 | . 1 . . . Swarmer 15 | . . 7 . 8 Grunt 5 | . 5 . . . Best Kill Streak 4 | . 3 3 . 4 Combat Bots Only 3 | . 3 3 . 3 Max Kills in Single Turn 3 | . 1 2 . 3 Gunslinging 1 | . . 1 . . Exploded 3 | . . . . 3 Melee . | . . . . . Uniques/NPCs Destroyed . | . . . . . Combat | -11 -10 -10 -10 -9 -------- Run | Scr Mat Min Exi Min Damage Taken 1328 | . 361 133 . 834 Core 254 | . 66 19 . 169 Absorbed by Shields . | . . . . . Core Remaining (%) 100 | 100 . . . . Volleys Fired 66 | . 39 15 . 12 Largest 2 | . 2 2 . 2 Hottest 50 | . 40 40 . 50 Shots Fired 130 | . 78 30 . 22 Gun 126 | . 78 30 . 18 Cannon . | . . . . . Launcher 4 | . . . . 4 Special . | . . . . . Kinetic 126 | . 78 30 . 18 Thermal . | . . . . . Explosive 4 | . . . . 4 Electromagnetic . | . . . . . Robot Hit Streak 23 | . 23 6 . 4 Robot Miss Streak 3 | . 3 3 . 2 Penetration Max . | . . . . . Secondary Targets 4 | . 1 3 . . Max Gunslinging Chain 1 | . 1 1 . . Shots Hit Robots 85 | . 58 16 . 11 Core Hits 46 | . 20 12 . 14 Critical Kills 1 | . 1 . . . Critical Parts Destroyed 1 | . 1 . . . Critical Strikes 2 | . 2 . . . Destroy 2 | . 2 . . . Melee Attacks . | . . . . . Impact . | . . . . . Slashing . | . . . . . Piercing . | . . . . . Sneak Attacks . | . . . . . Combat Hostiles . | . . . . . Follow-up Attacks . | . . . . . Damage Inflicted 1069 | . 605 168 . 296 Guns 898 | . 605 168 . 125 Cannons . | . . . . . Explosions 171 | . . . . 171 Melee . | . . . . . Ramming . | . . . . . Kinetic 898 | . 605 168 . 125 Thermal . | . . . . . Explosive 171 | . . . . 171 Electromagnetic . | . . . . . Impact . | . . . . . Slashing . | . . . . . Piercing . | . . . . . Highest Corruption 1 | . 1 1 1 1 Average Corruption 1 | . 1 1 1 1 Corruption Purged . | . . . . . Corruption Blocked . | . . . . . Effects 24 | . 4 10 6 4 Message Errors 7 | . 3 2 2 . Matter Fused 6 | . . 4 1 1 Heat Flow Errors 3 | . . 2 . 1 Energy Discharges 2 | . . . 1 1 Parts Rejected 1 | . 1 . . . Data Loss (minor) 2 | . . 1 1 . Data Loss (major) 2 | . . 1 1 . Misfires 1 | . . . . 1 Overload Shots . | . . . . . Overflow Damage . | . . . . . Projectiles . | . . . . . Explosions . | . . . . . Melee . | . . . . . Knockbacks . | . . . . . Impact . | . . . . . Kinetic . | . . . . . Secondary . | . . . . . Self-Inflicted Damage . | . . . . . Shots . | . . . . . Rammed . | . . . . . Targets Rammed . | . . . . . Kicked . | . . . . . Crushed . | . . . . . Highest Temperature 250 | . 30 250 . 187 Average Temperature 52 | . 9 92 . 61 Received Heat Transfer 216 | . 198 9 . 9 Siege Activations . | . . . . . Robots Corrupted . | . . . . . Combat Hostiles . | . . . . . Parts Fried . | . . . . . Impact Corruptions . | . . . . . Robots Melted . | . . . . . Combat Hostiles . | . . . . . Parts Melted 1 | . . . . 1 Heat Transferred . | . . . . . Parts Sabotaged . | . . . . . Parts Stolen . | . . . . . Parts Stripped . | . . . . . Power Chain Reactions . | . . . . . Missiles Intercepted . | . . . . . Alert | -11 -10 -10 -10 -9 ------- Run | Scr Mat Min Exi Min Peak Influence 298 | . 153 135 . 298 Initial 5 | . . 5 . . Average 65 | . 29 30 . 200 Maximum Alert Level 1 | . . . . 1 Low Security (%) 88 | . 100 100 . 45 Level 1 11 | . . . . 54 Level 2 . | . . . . . Level 3 . | . . . . . Level 4 . | . . . . . Level 5 . | . . . . . High Security . | . . . . . Max Security . | . . . . . Squads Dispatched 2 | . 2 . . . Investigation 1 | . 1 . . . Extermination . | . . . . . Reinforcement 1 | . 1 . . . Assault . | . . . . . Garrison . | . . . . . Intercept . | . . . . . Searches Triggered . | . . . . . Construction Impeded . | . . . . . Haulers Reinforced . | . . . . . Active Scanning Responses . | . . . . . Cargo Convoy Interrupts . | . . . . . Stealth | -11 -10 -10 -10 -9 --------- Run | Scr Mat Min Exi Min Distress Signals 1 | . 1 . . . Communications Jammed . | . . . . . Distress Signals . | . . . . . Times Spotted 30 | . 10 9 . 11 Peak Tracking Total 5 | . 4 3 . 5 Tactical Retreats . | . . . . . Traps | -11 -10 -10 -10 -9 ------- Run | Scr Mat Min Exi Min Traps Triggered 2 | . 2 . . . Indirectly . | . . . . . Trap Hack Attempts . | . . . . . Triggered . | . . . . . Disarmed . | . . . . . Reprogrammed . | . . . . . Reused . | . . . . . Traps Extracted . | . . . . . Installed . | . . . . . Triggered . | . . . . . Machines | -11 -10 -10 -10 -9 ---------- Run | Scr Mat Min Exi Min Machines Disabled 1 | . . . . 1 Max in Single Turn . | . . . . . Machines Sabotaged . | . . . . . Garrisons Compromised . | . . . . . Overloaded Fab Kills . | . . . . . Hacking | -11 -10 -10 -10 -9 --------- Run | Scr Mat Min Exi Min Machines Accessed 9 | . 7 . 2 . Terminals 6 | . 6 . . . Fabricators . | . . . . . Repair Stations . | . . . . . Recycling Units 1 | . 1 . . . Scanalyzers . | . . . . . Garrison Access . | . . . . . Total Hacks 19 | . 17 . 2 . Successful 9 | . 7 . 2 . Failed 10 | . 10 . . . Catastrophic 2 | . 2 . . . Database Lockouts . | . . . . . Manual 14 | . 13 . 1 . Terminals 14 | . 14 . . . Fabricators . | . . . . . Repair Stations . | . . . . . Recycling Units 3 | . 3 . . . Scanalyzers . | . . . . . Garrison Access . | . . . . . Terminal Hacks 8 | . 6 . 2 . Record 1 | . . . 1 . Robot Analysis 4 | . 4 . . . Branch Access Points 1 | . 1 . . . Hauler Manifests 1 | . 1 . . . EX-Prototype ID Bank 1 | . . . 1 . Fabricator Hacks . | . . . . . Repair Station Hacks . | . . . . . Recycling Unit Hacks . | . . . . . Scanalyzer . | . . . . . Garrison Access Hacks . | . . . . . Unauthorized Hacks 1 | . 1 . . . Terminals . | . . . . . Fabricators . | . . . . . Repair Stations . | . . . . . Recycling Units 1 | . 1 . . . Mask 1 | . 1 . . . Scanalyzers . | . . . . . Garrison Access . | . . . . . Data Cores Recovered . | . . . . . Used . | . . . . . Hacking Detections 6 | . 6 . . . Full Trace Events 1 | . 1 . . . Feedback Events . | . . . . . Feedback Blocked . | . . . . . Robot Schematics Acquired . | . . . . . Robots Built . | . . . . . Authchips . | . . . . . Time . | . . . . . Total Robot Build Rating . | . . . . . Part Schematics Acquired . | . . . . . Parts Built . | . . . . . Authchips . | . . . . . Time . | . . . . . Total Part Build Rating . | . . . . . Parts Repaired . | . . . . . Time . | . . . . . Parts Recycled . | . . . . . Recycled Matter . | . . . . . Retrieved Matter . | . . . . . Retrieved Components . | . . . . . Parts Scanalyzed . | . . . . . Part Schematics Acquired . | . . . . . Parts Damaged . | . . . . . Bothacking | -11 -10 -10 -10 -9 ------------ Run | Scr Mat Min Exi Min Used RIF Installer . | . . . . . Robots Hacked . | . . . . . Non-combat . | . . . . . Combat . | . . . . . Robot Hacks Applied . | . . . . . Relay Couplers Released . | . . . . . Fabnet Peak Effective % . | . . . . . Robots Rewired . | . . . . . Allies Hacked . | . . . . . Hacks Repelled . | . . . . . Allies | -11 -10 -10 -10 -9 -------- Run | Scr Mat Min Exi Min Total Allies 3 | . . 3 . . Largest Group 3 | . . 3 3 3 Highest-Rated Group 40 | . . 40 40 40 Highest-Rated Ally 16 | . . 16 16 16 Total Orders . | . . . . . Ally Attacks 27 | . . 7 . 20 Total Damage 205 | . . 76 . 129 Kills 4 | . . 2 . 2 Allies Corrupted . | . . . . . Allies Melted . | . . . . . Intel | -11 -10 -10 -10 -9 ------- Run | Scr Mat Min Exi Min Robot Analysis Total 4 | . 4 . . . Derelict Logs Recovered 4 | . . 3 . 1 Drone Launches . | . . . . . Drone Recoveries . | . . . . . Exploration | -11 -10 -10 -10 -9 ------------- Run | Scr Mat Min Exi Min Turns Passed 3083 | . 881 1131 536 535 Spaces Moved 1533 | 1 513 590 223 206 Core . | . . . . . Treads 1204 | . 185 590 223 206 Legs 329 | 1 328 . . . Wheels . | . . . . . Hover . | . . . . . Flight . | . . . . . Fastest Speed 120 | 120 120 160 240 240 Average Speed 186 | 120 145 183 240 240 Slowest Speed 240 | 120 190 240 240 240 Overloaded Moves . | . . . . . Propulsion Burnouts . | . . . . . Robots Hopped . | . . . . . Cave-ins Triggered . | . . . . . Exploration Rate (%) 53 | 1 69 99 62 35 Regions Visited 4 Branch Regions 3 Pre-discovered Areas 4 | . . 2 1 1 Known Exits Taken 1 | . 1 . . . Unknown Exits Taken 3 | 1 . 1 1 . Scrap Searched 2 | . . 1 . 1 Spaces Dug . | . . . . . Terrain Destroyed 22 | . . . . 22 Melee . | . . . . . Projectile . | . . . . . AOE 22 | . . . . 22 Terrain Rammed . | . . . . . Walls Destroyed . | . . . . . Machines Disabled . | . . . . . Actions | -11 -10 -10 -10 -9 --------- Run | Scr Mat Min Exi Min Total 1649 | . 583 612 227 227 Wait 9 | . 5 3 . 1 Move 1529 | . 512 589 222 206 Hop . | . . . . . Pick Up 18 | . 14 2 1 1 Fast Attach 4 | . 2 2 . . Attach 4 | . . . . 4 Detach 1 | . . 1 . . Swap 6 | . 4 . . 2 Drop 12 | . 7 . 4 1 Fire 66 | . 39 15 . 12 Melee . | . . . . . Ram . | . . . . . Kick . | . . . . . Crush . | . . . . . Escape Stasis . | . . . . . Rewire . | . . . . . Trap . | . . . . . Miscellaneous . | . . . . . Route ------- -11/Scrapyard -10/Materials (discovered 2 exits: [*Mat] / *Min) -10/Mines (discovered 3 exits: [*Mat x2] / *Exi) -10/Exiles -9/Mines (discovered 2 exits: [*Mat x2]) History --------- Turn | Location | Event 1 | -11/Scrapyard | Discovered new exit (range 0) 1 | -11/Scrapyard | Entered Materials 165 | -10/Materials | Discovered new exit (range 16) 314 | -10/Materials | Build established: Mutant 755 | -10/Materials | Identified exit to Mines 882 | -10/Materials | Entered Mines 982 | -10/Mines | YI-UF0 nonchalantly dropped a Grenade Launcher on the ground 1081 | -10/Mines | Learned location of Storage (-7) 1139 | -10/Mines | Learned Materials stockpile data 1184 | -10/Mines | Discovered new exit (range 6) 1404 | -10/Mines | Assisted by bots powering up and referring to "LRC-V3" 1552 | -10/Mines | Discovered new exit (range 13) 2001 | -10/Mines | Deemed a non-threat by the Exiles lab entrance 2003 | -10/Mines | Discovered new exit (range 5) 2013 | -10/Mines | Entered Exiles 2013 | -10/Exiles | Accompanied by 3 allies 2073 | -10/Exiles | Met 8R-AWN 2112 | -10/Exiles | Met EX-HEX 2181 | -10/Exiles | Met EX-BIN 2215 | -10/Exiles | Aligned with FarCom system 2217 | -10/Exiles | Given EX-Vault access code 2273 | -10/Exiles | Opened EX-Vault 2294 | -10/Exiles | Found Army-in-a-Box 2343 | -10/Exiles | Warned to stay clear of 0b10 Research branches 2427 | -10/Exiles | Met EX-DEC 2441 | -10/Exiles | Learned location of Zion (-7) 2530 | -10/Exiles | Discovered new exit (range 10) 2549 | -10/Exiles | Left Exiles lab with Army-in-a-Box 2549 | -10/Exiles | Entered Mines 2549 | -9/Mines | Accompanied by 3 allies 2698 | -9/Mines | Received a Rocket Launcher from a helpful Derelict 2778 | -9/Mines | Discovered new exit (range 5) 2949 | -9/Mines | Discovered new exit (range 15) 3041 | -9/Mines | Assembled infested the area 3075 | -9/Mines | Core integrity fell below 50% 3084 | -9/Mines | Destroyed by D-53 Grenadier with Mini Grenade Launcher Last Messages --------------- 02996_ System corrupted: FCS attempts to trigger Assault Rifle. 02996_ System corrupted: Assault Rifle misfires. 03041_ ALERT: Infestation in the mines, dispatching Demolisher response squad. 03058_ C-30 ARC bursts open, deploying its payload. 03058_ D-53 Grenadier unfolds itself. 03058_ Trooper 1b destroyed. 03062_ The unstable cave ceiling collapses. 03067_ Assault Rifle destroyed. 03067_ Lgt. Armor Plating destroyed. 03072_ Ion Engine destroyed. 03072_ Imp. Treads destroyed. 03075_ The unstable cave ceiling collapses. 03075_ Lgt. Assault Rifle destroyed. 03076_ The unstable cave ceiling collapses. 03077_ Imp. Treads destroyed. 03077_ Lgt. Assault Rifle destroyed. 03079_ as-01398 sneak attacks. 03080_ as-07200 destroyed. 03081_ The unstable cave ceiling collapses. Map ----- +----------------------------------------------------+ | ??????????????????????????????????????????????? | | ??????????????????????????????????????????????? | | ??????????????????????????????????????????????? | | ??????????????????????????????????????????????? | | ??????????????????????????????????????????????? | | ??????????????????????????????????????????????? | | ??????????????????????????????????????????????? | | ??????????????????????????????????????????????? | | ??????????????????????????????????????????????? | | ??????????????????????????????????????????????? | | ??????????????????????????????????????????????? | | ??????????????????????????????????????????????? | | ??????????????????????????????????????????????? | | ??????????????????????????????????????????????? | | ??????????????????????????????????????????????? | | ??????????????????????????#???????????????????? | | ????????????????????????? #???????????????????? | | ????????????????????????? #???????????????????? | | ????????????????????????? #??####?????????????? | | ???????????????????????? ?? #?????????????? | | ??????????????????##?### ??? #?????????????? | | ?????????????????## ## # ##??# ###???????????? | | ????????????????## #?# #???????????? | | ???????????????### # #???????????? | | ???????????????# #???????????? | | ?????????????### # @dd*% a% #???????????? | | ?????????????# #???????????? | | ?????????????# # = ####????????? | | ?????????????# ### #????????? | | ?????????????# ##?### ### #????????? | | ?????????????# # ##### ###?# ##???????? | | ?????????????#?### ##### ##### ######### | | ?????????????????###???# ## | | ???????????????????????## < ## | | ????????????????????????## ##### ## | | ?????????????????????????#####??# #### | | ???????????????????????????????# #??### | | ??????????????????????????????# #????##= | | ??????????????????????????????# ##????#=# | | ??????????????????????????????## ##?????###% | | ???????????????????????????????#####???##### | | ??????????????????????????????????????## | | ?????????????????????????????????????## %= | | ????????????????????????????????????## =! | | ????????????????????????????? %% | | ????????????????????????????? ###=* | | ????????????????????????????? ##### #??#[ | | ??????????????????????????????? ??????# #??# ! | | ??????????????????????????????????????# #??# | | ??????????????????????????????????????# #??# | +----------------------------------------------------+ Best States ------------- Heat Dissipation 25 Energy Generation 10 Energy Capacity 250 Matter Stores 300 Matter Capacity 300 Sight Range 16 Terrain Scan Density 10 Armor Coverage 150 Evasion (%) 55 Targeting Accuracy 5 Recoil Reduction 2 Item Schematics ----------------- None Robot Schematics ------------------ None Fabricated ------------ Nothing Alien Tech Used ----------------- None Achievements -------------- None Challenges ------------ None Game ------ Seed ActiveDeuteriumDetonator Manual? 0 Play Time 00:15:54 Cumulative 411.4 hours Start 2022.07.18 @ 17:59:23 End 2022.07.19 @ 09:56:56 Sessions 1 Manual Loads 0 Difficulty Rogue Special Mode None Game No. 472 Rogue 471 Adventurer 0 Explorer 1 Win Type - Total 9 Types 6/0/1/2/0/0/0/0/0 Lore% 76 Gallery% 87 Achievement% 66 Wizard Run 0 Options --------- ASCII 0 Keyboard 1 Movement Vi Keybinds 0 Fullscreen 1 Font 18/SmallcapsGlow Map View 76x50 Tactical HUD 1 Map Filters NONE Filters NONE Steam 1 RUN: 9d742316-cad5-4e5e-8c5a-2de816f9c221